[Event "*** SCC Grand Prix: Titled Tuesday Blitz"]
[Site "Chess.com"]
[Date "2020.10.13"]
[Round "7"]
[White "annacramling"]
[Black "Jumbo"]
[Result "0-1"]
[WhiteElo "2007"]
[BlackElo "2751"]
[TimeControl "180+1"]
[EndTime "11:16:42 PDT"]
[Termination "Jumbo won by resignation"]

1. d4 {[%clk 0:03:00.9]} 1... d6 {[%clk 0:02:59.3]} 2. Nf3 {[%clk 0:02:56.1]}
2... g6 {[%clk 0:02:57.9]} 3. c4 {[%clk 0:02:54.3]} 3... Bg7 {[%clk 0:02:57.4]}
4. h3 {[%clk 0:02:47.5]} 4... Nd7 {[%clk 0:02:55.1]} 5. e4 {[%clk 0:02:47.5]}
5... e5 {[%clk 0:02:53.9]} 6. d5 {[%clk 0:02:47.4]} 6... Ne7 {[%clk 0:02:52]} 7.
Nc3 {[%clk 0:02:47.2]} 7... f5 {[%clk 0:02:50.9]} 8. exf5 {[%clk 0:02:22.9]}
8... gxf5 {[%clk 0:02:47.8]} 9. Ng5 {[%clk 0:02:15.9]} 9... Nf6 {[%clk
0:02:44.3]} 10. g4 {[%clk 0:01:30.3]} 10... O-O {[%clk 0:02:25.5]} 11. Ne6
{[%clk 0:01:22.1]} 11... Bxe6 {[%clk 0:02:24.8]} 12. dxe6 {[%clk 0:01:23]} 12...
c6 {[%clk 0:02:14.4]} 13. Rg1 {[%clk 0:01:14.6]} 13... d5 {[%clk 0:01:54.6]} 14.
gxf5 {[%clk 0:01:07.6]} 14... Nxf5 {[%clk 0:01:50.1]} 15. Bd3 {[%clk 0:00:34.8]}
15... e4 {[%clk 0:01:47.5]} 16. Be2 {[%clk 0:00:35]} 16... d4 {[%clk 0:01:39.5]}
17. Bg4 {[%clk 0:00:31.2]} 17... dxc3 {[%clk 0:01:12]} 18. Bxf5 {[%clk
0:00:26.7]} 18... cxb2 {[%clk 0:01:08.5]} 19. Bxb2 {[%clk 0:00:25.1]} 19... Qa5+
{[%clk 0:01:08.9]} 20. Kf1 {[%clk 0:00:22.1]} 20... Qxf5 {[%clk 0:01:09]} 21.
Qd7 {[%clk 0:00:13.8]} 21... Qxf2+ {[%clk 0:00:41.2]} 22. Kxf2 {[%clk
0:00:12.3]} 22... Nxd7+ {[%clk 0:00:41.5]} 23. Ke2 {[%clk 0:00:09.9]} 23... Nf6
{[%clk 0:00:41.2]} 24. Raf1 {[%clk 0:00:05.6]} 24... Kh8 {[%clk 0:00:26.9]} 25.
e7 {[%clk 0:00:05.6]} 25... Rf7 {[%clk 0:00:25.8]} 26. Bxf6 {[%clk 0:00:04.8]}
26... Rxf6 {[%clk 0:00:20.8]} 27. Rxf6 {[%clk 0:00:02.9]} 27... Bxf6 {[%clk
0:00:20.8]} 28. Rf1 {[%clk 0:00:03.8]} 28... Bxe7 {[%clk 0:00:20.5]} 29. Rf7
{[%clk 0:00:04.5]} 29... Re8 {[%clk 0:00:20.1]} 30. Ke3 {[%clk 0:00:04.4]} 30...
Kg8 {[%clk 0:00:20.6]} 31. Rf4 {[%clk 0:00:03.7]} 31... Bg5 {[%clk 0:00:20.3]}
0-1

[Event "*** SCC Grand Prix: Titled Tuesday Blitz"]
[Site "Chess.com"]
[Date "2020.10.13"]
[Round "7"]
[White "midedu"]
[Black "Alexandercs432"]
[Result "1-0"]
[WhiteElo "2102"]
[BlackElo "2131"]
[TimeControl "180+1"]
[EndTime "11:16:44 PDT"]
[Termination "midedu won on time"]

1. e4 {[%clk 0:03:00.9]} 1... e5 {[%clk 0:02:58.7]} 2. Nf3 {[%clk 0:03:00.4]}
2... Nf6 {[%clk 0:02:59.4]} 3. Nxe5 {[%clk 0:02:59.7]} 3... d6 {[%clk
0:02:59.6]} 4. Nf3 {[%clk 0:02:59.8]} 4... Nxe4 {[%clk 0:03:00.1]} 5. d4 {[%clk
0:03:00.4]} 5... d5 {[%clk 0:03:00.2]} 6. Bd3 {[%clk 0:03:00.8]} 6... Nc6 {[%clk
0:03:00.6]} 7. O-O {[%clk 0:03:01.2]} 7... Be7 {[%clk 0:03:01.2]} 8. c4 {[%clk
0:03:00.9]} 8... Nb4 {[%clk 0:02:58.9]} 9. Bxe4 {[%clk 0:02:54.4]} 9... dxe4
{[%clk 0:02:58.4]} 10. Ne1 {[%clk 0:02:48.5]} 10... O-O {[%clk 0:02:56.4]} 11.
a3 {[%clk 0:02:46]} 11... Nc6 {[%clk 0:02:54.1]} 12. Be3 {[%clk 0:02:44.6]}
12... Bf5 {[%clk 0:02:49.2]} 13. Nc3 {[%clk 0:02:44]} 13... Re8 {[%clk
0:02:48.1]} 14. b4 {[%clk 0:02:41.3]} 14... Bf6 {[%clk 0:02:46]} 15. Nc2 {[%clk
0:02:39.6]} 15... h6 {[%clk 0:02:42.3]} 16. Qd2 {[%clk 0:02:37.2]} 16... Qe7
{[%clk 0:02:33.2]} 17. Rad1 {[%clk 0:02:35.9]} 17... Rad8 {[%clk 0:02:32.3]} 18.
Qc1 {[%clk 0:02:35.3]} 18... Bg6 {[%clk 0:02:25.9]} 19. Nd5 {[%clk 0:02:34.5]}
19... Rxd5 {[%clk 0:02:15.1]} 20. cxd5 {[%clk 0:02:33.9]} 20... Nb8 {[%clk
0:02:12.1]} 21. Na1 {[%clk 0:02:25.9]} 21... Rd8 {[%clk 0:02:09.7]} 22. Qc4
{[%clk 0:02:22.6]} 22... Qd7 {[%clk 0:02:05.4]} 23. Rc1 {[%clk 0:02:16.1]} 23...
Rc8 {[%clk 0:02:02.5]} 24. Nb3 {[%clk 0:02:15]} 24... Qd6 {[%clk 0:01:58.4]} 25.
Qc5 {[%clk 0:02:06.9]} 25... Qd8 {[%clk 0:01:52]} 26. Qxa7 {[%clk 0:02:05.5]}
26... Qxd5 {[%clk 0:01:46.8]} 27. Rc3 {[%clk 0:01:56.4]} 27... Nd7 {[%clk
0:01:34.7]} 28. Rfc1 {[%clk 0:01:52.6]} 28... c6 {[%clk 0:01:30.4]} 29. Qxb7
{[%clk 0:01:51.2]} 29... Ra8 {[%clk 0:01:20.8]} 30. Na5 {[%clk 0:01:39.6]} 30...
Rb8 {[%clk 0:00:30.3]} 31. Qxc6 {[%clk 0:01:37.1]} 31... Nb6 {[%clk 0:00:25.9]}
32. Qxd5 {[%clk 0:01:33]} 32... Nxd5 {[%clk 0:00:26.8]} 33. Rc8+ {[%clk
0:01:33.3]} 33... Rxc8 {[%clk 0:00:26.5]} 34. Rxc8+ {[%clk 0:01:33.1]} 34... Kh7
{[%clk 0:00:27.3]} 35. Rc5 {[%clk 0:01:12.5]} 35... Nb6 {[%clk 0:00:20.9]} 36.
Nc4 {[%clk 0:01:04.3]} 36... Na4 {[%clk 0:00:20.6]} 37. Ra5 {[%clk 0:01:02.2]}
37... Nc3 {[%clk 0:00:18.6]} 38. b5 {[%clk 0:00:58]} 38... Bf5 {[%clk
0:00:16.4]} 39. b6 {[%clk 0:00:57.4]} 39... Bc8 {[%clk 0:00:14]} 40. Nd6 {[%clk
0:00:55]} 40... Ne2+ {[%clk 0:00:03.5]} 41. Kf1 {[%clk 0:00:54.2]} 41... Be6
{[%clk 0:00:02.9]} 42. Kxe2 {[%clk 0:00:52.9]} 1-0

[Event "*** SCC Grand Prix: Titled Tuesday Blitz"]
[Site "Chess.com"]
[Date "2020.10.13"]
[Round "7"]
[White "DonBroca"]
[Black "ural58"]
[Result "0-1"]
[WhiteElo "2209"]
[BlackElo "2339"]
[TimeControl "180+1"]
[EndTime "11:16:46 PDT"]
[Termination "ural58 won on time"]

1. e4 {[%clk 0:03:00.9]} 1... d5 {[%clk 0:02:49.1]} 2. exd5 {[%clk 0:02:57]}
2... Qxd5 {[%clk 0:01:41.9]} 3. c4 {[%clk 0:02:38.2]} 3... Qa5 {[%clk
0:01:40.9]} 4. Nc3 {[%clk 0:02:38.3]} 4... e5 {[%clk 0:01:41.4]} 5. Nf3 {[%clk
0:02:37.4]} 5... Nc6 {[%clk 0:01:41.5]} 6. d4 {[%clk 0:02:37.8]} 6... exd4
{[%clk 0:01:41.6]} 7. Nxd4 {[%clk 0:02:38]} 7... Bb4 {[%clk 0:01:38.5]} 8. Ne2
{[%clk 0:02:33]} 8... Bg4 {[%clk 0:01:35.7]} 9. f3 {[%clk 0:02:32.2]} 9... Rd8
{[%clk 0:01:35.5]} 10. Qb3 {[%clk 0:02:18.2]} 10... Be6 {[%clk 0:01:24.6]} 11.
Bd2 {[%clk 0:02:13.8]} 11... Nf6 {[%clk 0:01:18.5]} 12. O-O-O {[%clk 0:02:10.8]}
12... O-O {[%clk 0:01:17.7]} 13. a3 {[%clk 0:02:08.2]} 13... Bxc3 {[%clk
0:01:16]} 14. Nxc3 {[%clk 0:02:07.6]} 14... Qf5 {[%clk 0:01:12.8]} 15. Be3
{[%clk 0:01:51.2]} 15... Rxd1+ {[%clk 0:00:54.6]} 16. Qxd1 {[%clk 0:01:49.8]}
16... Na5 {[%clk 0:00:51.8]} 17. Bd3 {[%clk 0:01:37.1]} 17... Qe5 {[%clk
0:00:45.3]} 18. Bd4 {[%clk 0:01:29.2]} 18... Qg5+ {[%clk 0:00:40.5]} 19. Kb1
{[%clk 0:01:24.2]} 19... Qxg2 {[%clk 0:00:36.2]} 20. Rg1 {[%clk 0:01:20]} 20...
Qxh2 {[%clk 0:00:22.3]} 21. Bxf6 {[%clk 0:01:18]} 21... g6 {[%clk 0:00:22.7]}
22. Rh1 {[%clk 0:01:13.5]} 22... Qf4 {[%clk 0:00:22.2]} 23. Bh4 {[%clk
0:00:53.2]} 23... Bxc4 {[%clk 0:00:22.1]} 24. Bxc4 {[%clk 0:00:52.1]} 24... Nxc4
{[%clk 0:00:23]} 25. Ne4 {[%clk 0:00:41.3]} 25... f5 {[%clk 0:00:19.5]} 26. Qd5+
{[%clk 0:00:37.6]} 26... Kg7 {[%clk 0:00:19.7]} 27. Qxc4 {[%clk 0:00:27]} 27...
fxe4 {[%clk 0:00:19.4]} 28. Be1 {[%clk 0:00:17.5]} 28... exf3 {[%clk 0:00:18.1]}
29. Bc3+ {[%clk 0:00:17.8]} 29... Rf6 {[%clk 0:00:13.7]} 30. Bxf6+ {[%clk
0:00:15.4]} 30... Qxf6 {[%clk 0:00:13.5]} 31. Qxc7+ {[%clk 0:00:15.2]} 31... Kf8
{[%clk 0:00:13.5]} 0-1

[Event "*** SCC Grand Prix: Titled Tuesday Blitz"]
[Site "Chess.com"]
[Date "2020.10.13"]
[Round "7"]
[White "Beltsychess"]
[Black "Sanyura"]
[Result "1-0"]
[WhiteElo "2640"]
[BlackElo "2486"]
[TimeControl "180+1"]
[EndTime "11:16:47 PDT"]
[Termination "Beltsychess won on time"]

1. d4 {[%clk 0:03:00.9]} 1... Nf6 {[%clk 0:02:54.6]} 2. c4 {[%clk 0:03:00.5]}
2... c5 {[%clk 0:02:52]} 3. Nf3 {[%clk 0:03:00]} 3... cxd4 {[%clk 0:02:51.2]} 4.
Nxd4 {[%clk 0:03:00.9]} 4... g6 {[%clk 0:02:51.5]} 5. Nc3 {[%clk 0:03:00.2]}
5... Bg7 {[%clk 0:02:50.9]} 6. e4 {[%clk 0:03:00.1]} 6... d6 {[%clk 0:02:49.2]}
7. Be2 {[%clk 0:02:59.3]} 7... O-O {[%clk 0:02:48.3]} 8. Be3 {[%clk 0:02:58.6]}
8... Nc6 {[%clk 0:02:45.4]} 9. O-O {[%clk 0:02:57.6]} 9... Qa5 {[%clk
0:02:43.7]} 10. Nb3 {[%clk 0:02:56.7]} 10... Qd8 {[%clk 0:02:40.3]} 11. Rc1
{[%clk 0:02:42.6]} 11... Be6 {[%clk 0:02:39.8]} 12. c5 {[%clk 0:02:39]} 12...
Bxb3 {[%clk 0:02:29.4]} 13. Qxb3 {[%clk 0:02:37.9]} 13... dxc5 {[%clk
0:02:29.8]} 14. Bxc5 {[%clk 0:02:37.8]} 14... Nd4 {[%clk 0:02:28.8]} 15. Qc4
{[%clk 0:02:30.2]} 15... Nxe2+ {[%clk 0:02:25.6]} 16. Qxe2 {[%clk 0:02:29.8]}
16... b6 {[%clk 0:02:16.1]} 17. Ba3 {[%clk 0:02:23.6]} 17... Re8 {[%clk
0:02:09.7]} 18. Rfd1 {[%clk 0:02:22.3]} 18... Qb8 {[%clk 0:02:07.8]} 19. Nb5
{[%clk 0:02:09.2]} 19... Qf4 {[%clk 0:01:31.6]} 20. g3 {[%clk 0:01:51.2]} 20...
Qg5 {[%clk 0:01:25]} 21. Nc7 {[%clk 0:01:40.5]} 21... Ng4 {[%clk 0:00:49.3]} 22.
h4 {[%clk 0:01:26.2]} 22... Qh5 {[%clk 0:00:36.7]} 23. Nxa8 {[%clk 0:01:25.7]}
23... Rxa8 {[%clk 0:00:35.5]} 24. Bxe7 {[%clk 0:01:21.9]} 24... Re8 {[%clk
0:00:28.2]} 25. Rd5 {[%clk 0:01:02.2]} 25... Be5 {[%clk 0:00:13.2]} 26. Bd6
{[%clk 0:00:57.1]} 26... Qh6 {[%clk 0:00:09]} 27. Rcd1 {[%clk 0:00:51.4]} 27...
Bxd6 {[%clk 0:00:07.7]} 28. Qxg4 {[%clk 0:00:45]} 28... Bc5 {[%clk 0:00:06.9]}
29. Rd8 {[%clk 0:00:43.8]} 29... Rxd8 {[%clk 0:00:06]} 30. Rxd8+ {[%clk
0:00:43.5]} 30... Kg7 {[%clk 0:00:06.6]} 31. Qe2 {[%clk 0:00:37.6]} 31... Qc1+
{[%clk 0:00:06.4]} 32. Rd1 {[%clk 0:00:36.6]} 32... Qh6 {[%clk 0:00:03.3]} 33.
Kg2 {[%clk 0:00:36.2]} 33... Kg8 {[%clk 0:00:02.8]} 34. e5 {[%clk 0:00:35.8]}
34... Qf8 {[%clk 0:00:02.4]} 35. e6 {[%clk 0:00:35.7]} 35... fxe6 {[%clk
0:00:02.6]} 36. Qxe6+ {[%clk 0:00:34.4]} 36... Kh8 {[%clk 0:00:03.1]} 37. Qe5+
{[%clk 0:00:33.7]} 37... Kg8 {[%clk 0:00:03.4]} 38. Rd2 {[%clk 0:00:30.4]} 1-0

[Event "*** SCC Grand Prix: Titled Tuesday Blitz"]
[Site "Chess.com"]
[Date "2020.10.13"]
[Round "7"]
[White "AlexTriapishko"]
[Black "Mr_Sinigami"]
[Result "1-0"]
[WhiteElo "2797"]
[BlackElo "2516"]
[TimeControl "180+1"]
[EndTime "11:16:48 PDT"]
[Termination "AlexTriapishko won on time"]

1. Nf3 {[%clk 0:02:58.2]} 1... Nf6 {[%clk 0:02:59]} 2. c4 {[%clk 0:02:56.1]}
2... g6 {[%clk 0:02:58.2]} 3. d4 {[%clk 0:02:56.7]} 3... Bg7 {[%clk 0:02:58]} 4.
g3 {[%clk 0:02:57.6]} 4... O-O {[%clk 0:02:57.9]} 5. Bg2 {[%clk 0:02:58.2]} 5...
d6 {[%clk 0:02:58.3]} 6. O-O {[%clk 0:02:57.9]} 6... Nbd7 {[%clk 0:02:58.8]} 7.
d5 {[%clk 0:02:53.1]} 7... e5 {[%clk 0:02:48.3]} 8. dxe6 {[%clk 0:02:52.1]} 8...
fxe6 {[%clk 0:02:49.2]} 9. Nc3 {[%clk 0:02:52.5]} 9... Nc5 {[%clk 0:02:34.1]}
10. Be3 {[%clk 0:02:49.2]} 10... Nfe4 {[%clk 0:02:11.8]} 11. Nxe4 {[%clk
0:02:45.6]} 11... Nxe4 {[%clk 0:02:12.7]} 12. Qc2 {[%clk 0:02:46.3]} 12... d5
{[%clk 0:01:59.1]} 13. Rfd1 {[%clk 0:02:40.8]} 13... c6 {[%clk 0:01:57.7]} 14.
Rac1 {[%clk 0:02:35.9]} 14... Nd6 {[%clk 0:01:42.6]} 15. b3 {[%clk 0:02:20.1]}
15... Nf5 {[%clk 0:01:39.4]} 16. Bc5 {[%clk 0:02:19.9]} 16... Nd6 {[%clk
0:01:18.7]} 17. Bd4 {[%clk 0:02:10.5]} 17... Qe7 {[%clk 0:01:12]} 18. Bxg7
{[%clk 0:02:04.4]} 18... Qxg7 {[%clk 0:01:11.5]} 19. Qc3 {[%clk 0:02:05]} 19...
Bd7 {[%clk 0:01:04.6]} 20. Qe5 {[%clk 0:01:54.3]} 20... Qxe5 {[%clk 0:00:59.9]}
21. Nxe5 {[%clk 0:01:55.2]} 21... Be8 {[%clk 0:00:53.4]} 22. e4 {[%clk
0:01:55.5]} 22... Nxe4 {[%clk 0:00:41.6]} 23. Bxe4 {[%clk 0:01:55.5]} 23... dxe4
{[%clk 0:00:41.8]} 24. Rd4 {[%clk 0:01:51.8]} 24... e3 {[%clk 0:00:38.6]} 25. f4
{[%clk 0:01:49.2]} 25... g5 {[%clk 0:00:36.7]} 26. Re1 {[%clk 0:01:47.3]} 26...
gxf4 {[%clk 0:00:36.1]} 27. gxf4 {[%clk 0:01:44.2]} 27... Kh8 {[%clk 0:00:35.9]}
28. Rxe3 {[%clk 0:01:43.9]} 28... Bg6 {[%clk 0:00:33.4]} 29. Nxg6+ {[%clk
0:01:34.8]} 29... hxg6 {[%clk 0:00:33]} 30. Rxe6 {[%clk 0:01:35.7]} 30... Kg7
{[%clk 0:00:28.3]} 31. Re7+ {[%clk 0:01:26.8]} 31... Rf7 {[%clk 0:00:26.9]} 32.
Rdd7 {[%clk 0:01:24.7]} 32... Rxe7 {[%clk 0:00:25.4]} 33. Rxe7+ {[%clk
0:01:25.6]} 33... Kf6 {[%clk 0:00:25.5]} 34. Rxb7 {[%clk 0:01:26.5]} 34... Kf5
{[%clk 0:00:23.5]} 35. Rf7+ {[%clk 0:01:25.8]} 35... Ke4 {[%clk 0:00:21.7]} 36.
Rf6 {[%clk 0:01:21.5]} 36... c5 {[%clk 0:00:20]} 37. Kf2 {[%clk 0:01:16.9]}
37... a5 {[%clk 0:00:19.7]} 38. Kg3 {[%clk 0:01:13.9]} 38... a4 {[%clk
0:00:18.8]} 39. Rxg6 {[%clk 0:01:13]} 39... a3 {[%clk 0:00:18.1]} 40. Re6+
{[%clk 0:01:08.4]} 40... Kd3 {[%clk 0:00:17.7]} 41. f5 {[%clk 0:01:08.9]} 41...
Kc2 {[%clk 0:00:14]} 42. Re2+ {[%clk 0:01:05.2]} 42... Kb1 {[%clk 0:00:13.9]}
43. f6 {[%clk 0:01:05.6]} 43... Rf8 {[%clk 0:00:12.8]} 44. Rf2 {[%clk
0:01:05.5]} 44... Rxf6 {[%clk 0:00:11]} 45. Rxf6 {[%clk 0:01:05.1]} 45... Kxa2
{[%clk 0:00:11.6]} 46. Rb6 {[%clk 0:00:59.4]} 46... Kb2 {[%clk 0:00:10.5]} 47.
b4 {[%clk 0:00:56.2]} 47... cxb4 {[%clk 0:00:04.4]} 48. Rxb4+ {[%clk 0:00:57.1]}
1-0

[Event "*** SCC Grand Prix: Titled Tuesday Blitz"]
[Site "Chess.com"]
[Date "2020.10.13"]
[Round "7"]
[White "TST2014"]
[Black "tdf98pantani"]
[Result "0-1"]
[WhiteElo "2535"]
[BlackElo "2719"]
[TimeControl "180+1"]
[EndTime "11:16:49 PDT"]
[Termination "tdf98pantani won by checkmate"]

1. d4 {[%clk 0:03:00.9]} 1... d5 {[%clk 0:02:58.4]} 2. c4 {[%clk 0:03:00.4]}
2... e6 {[%clk 0:02:58.6]} 3. Nf3 {[%clk 0:03:00.2]} 3... Nf6 {[%clk 0:02:58.8]}
4. Nc3 {[%clk 0:03:00.2]} 4... Be7 {[%clk 0:02:58.1]} 5. Bf4 {[%clk 0:02:59.4]}
5... O-O {[%clk 0:02:56.2]} 6. e3 {[%clk 0:02:59.4]} 6... Nbd7 {[%clk 0:02:54]}
7. c5 {[%clk 0:02:59.1]} 7... b6 {[%clk 0:02:51.2]} 8. c6 {[%clk 0:02:43.4]}
8... Nb8 {[%clk 0:02:50.1]} 9. Bb5 {[%clk 0:02:30.9]} 9... a6 {[%clk 0:02:49.3]}
10. Qa4 {[%clk 0:02:30.7]} 10... Ne4 {[%clk 0:02:28.3]} 11. Nxe4 {[%clk
0:02:23.2]} 11... dxe4 {[%clk 0:02:28.2]} 12. Ne5 {[%clk 0:02:23.3]} 12... f6
{[%clk 0:02:20.6]} 13. Nc4 {[%clk 0:02:20.2]} 13... Qd5 {[%clk 0:02:12.3]} 14.
Bxc7 {[%clk 0:02:03.4]} 14... Qxb5 {[%clk 0:01:50.8]} 15. Qxb5 {[%clk
0:01:50.5]} 15... axb5 {[%clk 0:01:50.6]} 16. Nxb6 {[%clk 0:01:50.9]} 16... Ra6
{[%clk 0:01:49.2]} 17. Bxb8 {[%clk 0:01:20.1]} 17... Rxb6 {[%clk 0:01:49]} 18.
c7 {[%clk 0:01:18.1]} 18... Bb4+ {[%clk 0:01:16.5]} 19. Ke2 {[%clk 0:01:16.9]}
19... Ba6 {[%clk 0:01:16.6]} 20. a3 {[%clk 0:01:08.9]} 20... Be7 {[%clk
0:01:12.3]} 21. b4 {[%clk 0:01:08.4]} 21... Rc8 {[%clk 0:01:11.9]} 22. Rac1
{[%clk 0:01:06.7]} 22... Bb7 {[%clk 0:01:11.6]} 23. Rc3 {[%clk 0:01:06]} 23...
Bd5 {[%clk 0:01:11.6]} 24. f3 {[%clk 0:00:58.4]} 24... Bc4+ {[%clk 0:01:07.4]}
25. Kf2 {[%clk 0:00:58.3]} 25... f5 {[%clk 0:01:07.5]} 26. Rb1 {[%clk
0:00:47.8]} 26... Ra6 {[%clk 0:01:00.1]} 27. Rxc4 {[%clk 0:00:29.4]} 27... bxc4
{[%clk 0:00:59.8]} 28. b5 {[%clk 0:00:29.6]} 28... Rb6 {[%clk 0:00:47.5]} 29.
Ba7 {[%clk 0:00:27.7]} 29... Rb7 {[%clk 0:00:43.2]} 30. Bc5 {[%clk 0:00:20.2]}
30... Rcxc7 {[%clk 0:00:40]} 31. b6 {[%clk 0:00:18.2]} 31... Rxc5 {[%clk
0:00:39.4]} 32. dxc5 {[%clk 0:00:18.1]} 32... Bxc5 {[%clk 0:00:40.3]} 33. Rc1
{[%clk 0:00:17.7]} 33... Rxb6 {[%clk 0:00:39.9]} 34. Rxc4 {[%clk 0:00:18.1]}
34... Rb2+ {[%clk 0:00:40]} 35. Kf1 {[%clk 0:00:17.6]} 35... Bxe3 {[%clk
0:00:40.2]} 36. fxe4 {[%clk 0:00:17.9]} 36... f4 {[%clk 0:00:40.3]} 37. g3
{[%clk 0:00:17.1]} 37... Rf2+ {[%clk 0:00:39.6]} 38. Ke1 {[%clk 0:00:16.2]}
38... f3 {[%clk 0:00:35.7]} 39. Rc3 {[%clk 0:00:14.3]} 39... Re2+ {[%clk
0:00:35.8]} 40. Kd1 {[%clk 0:00:14.2]} 40... Rd2+ {[%clk 0:00:34.1]} 41. Ke1
{[%clk 0:00:13.8]} 41... f2+ {[%clk 0:00:34.4]} 42. Kf1 {[%clk 0:00:14.2]} 42...
Rd1+ {[%clk 0:00:35]} 43. Kg2 {[%clk 0:00:14.2]} 43... f1=Q# {[%clk 0:00:35.6]}
0-1

[Event "*** SCC Grand Prix: Titled Tuesday Blitz"]
[Site "Chess.com"]
[Date "2020.10.13"]
[Round "7"]
[White "RaunakSadhwani2005"]
[Black "GiantThresher"]
[Result "0-1"]
[WhiteElo "2949"]
[BlackElo "2857"]
[TimeControl "180+1"]
[EndTime "11:16:54 PDT"]
[Termination "GiantThresher won by resignation"]

1. c4 {[%clk 0:03:00.9]} 1... e6 {[%clk 0:02:57.6]} 2. Nf3 {[%clk 0:03:00.4]}
2... d5 {[%clk 0:02:57.6]} 3. d4 {[%clk 0:03:00.7]} 3... Nf6 {[%clk 0:02:56.9]}
4. g3 {[%clk 0:03:01]} 4... c5 {[%clk 0:02:56.7]} 5. Bg2 {[%clk 0:02:49.9]} 5...
cxd4 {[%clk 0:02:50]} 6. Nxd4 {[%clk 0:02:50.3]} 6... e5 {[%clk 0:02:50.4]} 7.
Nb3 {[%clk 0:02:49.6]} 7... d4 {[%clk 0:02:50]} 8. O-O {[%clk 0:02:46.4]} 8...
Nc6 {[%clk 0:02:50.6]} 9. e3 {[%clk 0:02:46.2]} 9... d3 {[%clk 0:02:38.4]} 10.
Nc3 {[%clk 0:02:45.2]} 10... Be6 {[%clk 0:02:34.5]} 11. Nd2 {[%clk 0:02:32.4]}
11... h5 {[%clk 0:02:33.9]} 12. h4 {[%clk 0:02:24.6]} 12... Qd7 {[%clk
0:02:28.4]} 13. b3 {[%clk 0:02:17.3]} 13... Bg4 {[%clk 0:02:19.5]} 14. Bf3
{[%clk 0:02:17.1]} 14... Bb4 {[%clk 0:02:12.7]} 15. Bb2 {[%clk 0:02:11.2]} 15...
O-O-O {[%clk 0:02:12]} 16. a3 {[%clk 0:01:33.9]} 16... Bxc3 {[%clk 0:02:01.8]}
17. Bxc3 {[%clk 0:01:34.8]} 17... Qf5 {[%clk 0:01:45]} 18. b4 {[%clk 0:01:05.6]}
18... g5 {[%clk 0:01:42.4]} 19. b5 {[%clk 0:01:04.3]} 19... Ne7 {[%clk
0:01:32.8]} 20. c5 {[%clk 0:00:57.4]} 20... Ned5 {[%clk 0:01:10.6]} 21. Bb2
{[%clk 0:00:54.4]} 21... gxh4 {[%clk 0:01:09.4]} 22. c6 {[%clk 0:00:46.1]} 22...
hxg3 {[%clk 0:01:05.4]} 23. fxg3 {[%clk 0:00:35.8]} 23... Qg5 {[%clk 0:01:02.1]}
24. Nc4 {[%clk 0:00:20.6]} 24... Rhe8 {[%clk 0:00:37.7]} 25. Qa4 {[%clk
0:00:16.2]} 25... Kb8 {[%clk 0:00:33.9]} 26. b6 {[%clk 0:00:16.4]} 26... Nxb6
{[%clk 0:00:30]} 27. c7+ {[%clk 0:00:16.8]} 27... Kxc7 {[%clk 0:00:28.8]} 28.
Qxa7 {[%clk 0:00:17.4]} 28... Nxc4 {[%clk 0:00:18.6]} 29. Qxb7+ {[%clk
0:00:17.6]} 29... Kd6 {[%clk 0:00:19.3]} 30. Qc6+ {[%clk 0:00:18]} 30... Ke7
{[%clk 0:00:19.3]} 31. Qxc4 {[%clk 0:00:18.5]} 31... Qxe3+ {[%clk 0:00:19]} 32.
Kg2 {[%clk 0:00:19.1]} 32... Bxf3+ {[%clk 0:00:16.5]} 33. Rxf3 {[%clk
0:00:19.3]} 33... Qe2+ {[%clk 0:00:17.2]} 34. Rf2 {[%clk 0:00:14.7]} 34... Qe4+
{[%clk 0:00:17.8]} 35. Qxe4 {[%clk 0:00:15.1]} 35... Nxe4 {[%clk 0:00:18.7]} 36.
Rff1 {[%clk 0:00:16]} 36... Ke6 {[%clk 0:00:18.4]} 37. Rae1 {[%clk 0:00:16]}
37... f5 {[%clk 0:00:18.8]} 38. Rh1 {[%clk 0:00:16.6]} 38... Rc8 {[%clk
0:00:18.7]} 0-1

[Event "*** SCC Grand Prix: Titled Tuesday Blitz"]
[Site "Chess.com"]
[Date "2020.10.13"]
[Round "7"]
[White "katchesskat"]
[Black "boasovietica"]
[Result "0-1"]
[WhiteElo "2248"]
[BlackElo "2407"]
[TimeControl "180+1"]
[EndTime "11:16:57 PDT"]
[Termination "boasovietica won on time"]

1. c4 {[%clk 0:03:00.9]} 1... c5 {[%clk 0:02:59.1]} 2. Nf3 {[%clk 0:02:59]} 2...
Nc6 {[%clk 0:02:58.7]} 3. a3 {[%clk 0:02:54.3]} 3... g6 {[%clk 0:02:52.6]} 4. e3
{[%clk 0:02:51.2]} 4... Bg7 {[%clk 0:02:47.5]} 5. d3 {[%clk 0:02:47.9]} 5... a5
{[%clk 0:02:45.5]} 6. Nc3 {[%clk 0:02:46.8]} 6... e5 {[%clk 0:02:45.3]} 7. h4
{[%clk 0:02:39.5]} 7... h6 {[%clk 0:02:44.7]} 8. Be2 {[%clk 0:02:39.7]} 8...
Nge7 {[%clk 0:02:44.3]} 9. Qc2 {[%clk 0:02:20.1]} 9... d5 {[%clk 0:02:22.6]} 10.
cxd5 {[%clk 0:02:19.2]} 10... Nxd5 {[%clk 0:02:22.6]} 11. Ne4 {[%clk 0:02:05.7]}
11... b6 {[%clk 0:02:18.2]} 12. Rb1 {[%clk 0:01:56.7]} 12... f5 {[%clk
0:02:06.8]} 13. Nc3 {[%clk 0:01:53.6]} 13... Nde7 {[%clk 0:02:04.6]} 14. b3
{[%clk 0:01:48.5]} 14... Be6 {[%clk 0:02:03.6]} 15. Bb2 {[%clk 0:01:48.2]} 15...
O-O {[%clk 0:02:01.6]} 16. Nb5 {[%clk 0:01:47.2]} 16... Qd7 {[%clk 0:01:50.7]}
17. g3 {[%clk 0:01:46.9]} 17... Rad8 {[%clk 0:01:40.8]} 18. Rc1 {[%clk
0:01:38.5]} 18... Bd5 {[%clk 0:01:33.7]} 19. Nc3 {[%clk 0:01:36.8]} 19... Be6
{[%clk 0:01:32]} 20. Nb1 {[%clk 0:01:24]} 20... Rf7 {[%clk 0:01:09.3]} 21. Nbd2
{[%clk 0:01:22.9]} 21... Rdf8 {[%clk 0:00:54]} 22. Qb1 {[%clk 0:01:21.3]} 22...
e4 {[%clk 0:00:35.1]} 23. dxe4 {[%clk 0:01:11.3]} 23... Bxb2 {[%clk 0:00:27.7]}
24. Qxb2 {[%clk 0:01:03.6]} 24... fxe4 {[%clk 0:00:27.6]} 25. Ne5 {[%clk
0:01:03.6]} 25... Nxe5 {[%clk 0:00:22.8]} 26. Qxe5 {[%clk 0:01:04.5]} 26... Rxf2
{[%clk 0:00:22]} 27. Nxe4 {[%clk 0:01:04.3]} 27... Rxe2+ {[%clk 0:00:15.5]} 28.
Kxe2 {[%clk 0:01:02.5]} 28... Bg4+ {[%clk 0:00:16]} 29. Ke1 {[%clk 0:00:59.3]}
29... Qd3 {[%clk 0:00:16.3]} 30. Nc3 {[%clk 0:00:09.7]} 30... Rf3 {[%clk
0:00:06.8]} 31. Qb8+ {[%clk 0:00:01.8]} 31... Kh7 {[%clk 0:00:06.5]} 0-1